fUSD/lending_fUSD_20240826
["ID","MTS","AMOUNT","RATE_DAILY","PERIOD"]
[336119164,1724703052385,-328.67045933,0.00010862,2]
[336119166,1724703052394,-60.32076394,0.00010862,2]
[336119168,1724703052406,-398.86007286,0.00010862,2]
[336119171,1724703052418,-195.30893079,0.00010862,2]
[336119173,1724703052427,-1831.46611084,0.00010958,2]
[336119175,1724703052438,-207.44422513,0.00010958,2]
[336119177,1724703052447,-253.462647,0.00010958,2]
[336119179,1724703052456,-168.98513285,0.00010958,2]
[336119181,1724703052467,-1079.04486715,0.00010958,2]
[336119183,1724703052477,-190.47497089,0.00010958,2]
[336119185,1724703052488,-62.98767611,0.00010958,2]
[336119187,1724703052497,-326.72801693,0.00010958,2]
[336119190,1724703052511,-1082.61991605,0.00010958,2]
[336119192,1724703052522,-936.45206702,0.00010958,2]
[336119194,1724703052532,-253.462647,0.00010958,2]
[336119196,1724703052541,-394.02223743,0.00010958,2]
[336119198,1724703052553,-1951.79694409,0.00010958,2]
[336119200,1724703052562,-1248.03,0.00010958,2]
[336119202,1724703052570,-1248.03,0.00010958,2]
[336119204,1724703052580,-253.462647,0.00010958,2]
[336119206,1724703052588,-253.462647,0.00010958,2]
[336119208,1724703052597,-253.462647,0.00010958,2]
[336119210,1724703052606,-253.462647,0.00010958,2]
[336119212,1724703052615,-500.0,0.00010958,2]
[336119214,1724703052630,-253.462647,0.00010958,2]
[336119216,1724703052639,-500.0,0.00010958,2]
[336119218,1724703052648,-253.462647,0.00010958,2]
[336119220,1724703052658,-500.0,0.00010958,2]
[336119222,1724703052670,-253.462647,0.00010958,2]
[336119224,1724703052679,-500.0,0.00010958,2]
[336119226,1724703052687,-500.0,0.00010958,2]
[336119228,1724703052697,-253.462647,0.00010958,2]
[336119230,1724703052707,-500.0,0.00010958,2]
[336119232,1724703052715,-647.56,0.00010958,2]
[336119234,1724703052726,-253.462647,0.00010958,2]
[336119236,1724703052735,-253.462647,0.00010958,2]
[336119238,1724703052745,-500.0,0.00010958,2]
[336119240,1724703052753,-253.462647,0.00010958,2]
[336119242,1724703052762,-500.0,0.00010958,2]
[336119244,1724703052771,-253.462647,0.00010958,2]
[336119246,1724703052780,-500.0,0.00010958,2]
[336119248,1724703052789,-500.0,0.00010958,2]
[336119250,1724703052798,-253.462639,0.00010958,2]
[336119252,1724703052807,-500.0,0.00010958,2]
[336119254,1724703052816,-500.0,0.00010958,2]
[336119256,1724703052826,-500.0,0.00010958,2]
[336119258,1724703052836,-500.0,0.00010958,2]
[336119260,1724703052845,-500.0,0.00010958,2]
[336119262,1724703052855,-504.08620911,0.00010958,2]
[336119264,1724703052865,-500.0,0.00010958,2]
[336119284,1724703053047,-500.0,0.00010958,2]
[336119286,1724703053057,-369.41418888,0.00010958,2]
[336119288,1724703053067,-500.0,0.00010958,2]
[336119290,1724703053076,-500.0,0.00010958,2]
[336119292,1724703053085,-500.0,0.00010958,2]
[336119294,1724703053095,-500.0,0.00010958,2]
[336119296,1724703053104,-500.0,0.00010958,2]
[336119298,1724703053113,-500.0,0.00010958,2]
[336119300,1724703053122,-500.0,0.00010958,2]
[336119302,1724703053131,-500.0,0.00010958,2]
[336119304,1724703053140,-500.0,0.00010958,2]
[336119306,1724703053149,-500.0,0.00010958,2]
[336119308,1724703053159,-500.0,0.00010958,2]
[336119310,1724703053169,-500.0,0.00010958,2]
[336119312,1724703053179,-500.0,0.00010958,2]
[336119314,1724703053189,-500.0,0.00010958,2]
[336119316,1724703053199,-500.0,0.00010958,2]
[336119318,1724703053209,-500.0,0.00010958,2]
[336119320,1724703053218,-500.0,0.00010958,2]
[336119322,1724703053227,-500.0,0.00010958,2]
[336119324,1724703053237,-500.0,0.00010958,2]
[336119326,1724703053246,-500.0,0.00010958,2]
[336119328,1724703053255,-500.0,0.00010958,2]
[336119330,1724703053265,-444.2,0.00010958,2]
[336119332,1724703053274,-500.0,0.00010958,2]
[336119334,1724703053284,-500.0,0.00010958,2]
[336119336,1724703053294,-500.0,0.00010958,2]
[336119338,1724703053303,-500.0,0.00010958,2]
[336119341,1724703053313,-500.0,0.00010958,2]
[336119343,1724703053323,-500.0,0.00010958,2]
[336119345,1724703053332,-500.0,0.00010958,2]
[336119346,1724703053342,-536.74,0.00010958,2]
[336119349,1724703053351,-500.0,0.00010958,2]
[336119351,1724703053360,-500.0,0.00010958,2]
[336119353,1724703053370,-500.0,0.00010958,2]
[336119355,1724703053379,-500.0,0.00010958,2]
[336119357,1724703053389,-500.0,0.00010958,2]
[336119359,1724703053398,-500.0,0.00010958,2]
[336119360,1724703053408,-500.0,0.00010958,2]
[336119362,1724703053417,-528.55373758,0.00010958,2]
[336119364,1724703053426,-500.0,0.00010958,2]
[336119366,1724703053436,-500.0,0.00010958,2]
[336119368,1724703053445,-500.0,0.00010958,2]
[336119370,1724703053455,-500.0,0.00010958,2]
[336119372,1724703053464,-504.98421748,0.00010958,2]
[336119374,1724703053474,-500.0,0.00010958,2]
[336119376,1724703053483,-500.0,0.00010958,2]
[336119378,1724703053493,-500.0,0.00010958,2]
[336119380,1724703053502,-500.0,0.00010958,2]
[336119382,1724703053512,-500.0,0.00010958,2]
[336119384,1724703053521,-516.3528006,0.00010958,2]
[336119386,1724703053531,-500.0,0.00010958,2]
[336119388,1724703053541,-500.0,0.00010958,2]
[336119390,1724703053551,-550.0,0.00010958,2]
[336119392,1724703053560,-250.30046888,0.00010958,2]
[336119394,1724703053569,-500.0,0.00010958,2]
[336119396,1724703053579,-500.0,0.00010958,2]
[336119398,1724703053588,-500.0,0.00010958,2]
[336119400,1724703053598,-500.0,0.00010958,2]
[336119402,1724703053608,-500.0,0.00010958,2]
[336119404,1724703053617,-500.0,0.00010958,2]
[336119406,1724703053631,-500.0,0.00010958,2]
[336119407,1724703053640,-500.0,0.00010958,2]
[336119409,1724703053649,-500.0,0.00010958,2]
[336119411,1724703053658,-500.0,0.00010958,2]
[336119413,1724703053670,-319.99,0.00010958,2]
[336119415,1724703053681,-500.0,0.00010958,2]
[336119417,1724703053690,-500.0,0.00010958,2]
[336119419,1724703053702,-500.0,0.00010958,2]
[336119421,1724703053713,-500.0,0.00010958,2]
[336119423,1724703053723,-500.0,0.00010958,2]
[336119425,1724703053732,-500.0,0.00010958,2]
[336119427,1724703053742,-500.0,0.00010958,2]
[336119429,1724703053751,-500.0,0.00010958,2]
[336119431,1724703053760,-500.0,0.00010958,2]
[336119433,1724703053770,-500.0,0.00010958,2]
[336119435,1724703053780,-500.0,0.00010958,2]
[336119437,1724703053790,-500.0,0.00010958,2]
[336119439,1724703053800,-500.0,0.00010958,2]
[336119441,1724703053809,-500.0,0.00010958,2]
[336119443,1724703053819,-500.0,0.00010958,2]
[336119445,1724703053829,-500.0,0.00010958,2]
[336119447,1724703053840,-500.0,0.00010958,2]
[336119449,1724703053850,-500.0,0.00010958,2]
[336119451,1724703053860,-500.0,0.00010958,2]
[336119453,1724703053869,-500.0,0.00010958,2]
[336119455,1724703053879,-500.0,0.00010958,2]
[336119457,1724703053888,-500.0,0.00010958,2]
[336119459,1724703053898,-500.0,0.00010958,2]
[336119461,1724703053908,-575.57728628,0.00010958,2]
[336119463,1724703053918,-500.0,0.00010958,2]
[336119465,1724703053927,-500.0,0.00010958,2]
[336119467,1724703053937,-500.0,0.00010958,2]
[336119469,1724703053948,-500.0,0.00010958,2]
[336119471,1724703053958,-500.0,0.00010958,2]
[336119473,1724703053968,-500.0,0.00010958,2]
[336119475,1724703053978,-500.0,0.00010958,2]
[336119477,1724703053988,-500.0,0.00010958,2]
[336119479,1724703053998,-500.0,0.00010958,2]
[336119481,1724703054008,-500.0,0.00010958,2]
[336119483,1724703054018,-500.0,0.00010958,2]
[336119485,1724703054029,-500.0,0.00010958,2]
[336119487,1724703054039,-500.0,0.00010958,2]
[336119489,1724703054048,-500.0,0.00010958,2]
[336119491,1724703054058,-500.0,0.00010958,2]
[336119492,1724703054067,-500.0,0.00010958,2]
[336119494,1724703054077,-551.51550262,0.00010958,2]
[336119496,1724703054087,-151.0,0.00010958,2]
[336119498,1724703054096,-500.0,0.00010958,2]
[336119500,1724703054106,-500.0,0.00010958,2]
[336119502,1724703054115,-500.0,0.00010958,2]
[336119504,1724703054125,-500.0,0.00010958,2]
[336119506,1724703054134,-500.0,0.00010958,2]
[336119508,1724703054146,-500.0,0.00010958,2]
[336119510,1724703054155,-500.0,0.00010958,2]
[336119512,1724703054164,-500.0,0.00010958,2]
[336119514,1724703054174,-547.95003597,0.00010958,2]
[336119516,1724703054183,-500.0,0.00010958,2]
[336119518,1724703054193,-500.0,0.00010958,2]
[336119520,1724703054202,-500.0,0.00010958,2]
[336119522,1724703054212,-442.57836303,0.00010958,2]
[336119524,1724703054221,-500.0,0.00010958,2]
[336119526,1724703054231,-500.0,0.00010958,2]
[336119528,1724703054241,-500.0,0.00010958,2]
[336119530,1724703054250,-500.0,0.00010958,2]
[336119531,1724703054260,-500.0,0.00010958,2]
[336119533,1724703054269,-500.0,0.00010958,2]
[336119535,1724703054278,-500.0,0.00010958,2]
[336119537,1724703054288,-500.0,0.00010958,2]
[336119539,1724703054297,-500.0,0.00010958,2]
[336119541,1724703054307,-500.0,0.00010958,2]
[336119543,1724703054317,-500.0,0.00010958,2]
[336119545,1724703054327,-500.0,0.00010958,2]
[336119547,1724703054337,-500.0,0.00010958,2]
[336119549,1724703054346,-151.0,0.00010958,2]
[336119551,1724703054356,-500.0,0.00010958,2]
[336119553,1724703054365,-500.0,0.00010958,2]
[336119555,1724703054374,-151.0,0.00010958,2]
[336119557,1724703054384,-500.0,0.00010958,2]
[336119559,1724703054394,-200.0,0.00010958,2]
[336119561,1724703054404,-500.0,0.00010958,2]
[336119563,1724703054414,-151.0,0.00010958,2]
[336119565,1724703054424,-500.0,0.00010958,2]
[336119567,1724703054433,-500.0,0.00010958,2]
[336119569,1724703054443,-151.0,0.00010958,2]
[336119571,1724703054452,-500.0,0.00010958,2]
[336119573,1724703054461,-151.0,0.00010958,2]
[336119575,1724703054471,-524.35478154,0.00010958,2]
[336119577,1724703054484,-151.0,0.00010958,2]
[336119579,1724703054493,-151.0,0.00010958,2]
[336119580,1724703054502,-151.0,0.00010958,2]
[336119582,1724703054511,-500.0,0.00010958,2]
[336119584,1724703054522,-500.0,0.00010958,2]
[336119586,1724703054531,-184.911304,0.00010958,2]
[336119588,1724703054540,-500.0,0.00010958,2]
[336119590,1724703054550,-500.0,0.00010958,2]
[336119592,1724703054559,-517.11,0.00010958,2]
[336119594,1724703054568,-500.0,0.00010958,2]
[336119596,1724703054577,-500.0,0.00010958,2]
[336119598,1724703054586,-517.11,0.00010958,2]
[336119600,1724703054595,-437.56992713,0.00010958,2]
[336119602,1724703054604,-517.11,0.00010958,2]
[336119604,1724703054613,-517.11,0.00010958,2]
[336119606,1724703054627,-517.11,0.00010958,2]
[336119608,1724703054637,-517.11,0.00010958,2]
[336119610,1724703054646,-517.11,0.00010958,2]
[336119612,1724703054655,-517.11,0.00010958,2]
[336119614,1724703054666,-495.62940661,0.00010958,2]
[336119619,1724703054709,-21.48059339,0.00010958,2]
[336119621,1724703054718,-385.89085125,0.00010958,2]
[336119624,1724703054730,-131.21914875,0.00010958,2]
[336119626,1724703054740,-517.11,0.00010958,2]
[336119628,1724703054750,-452.8447294,0.00010958,2]
[336119630,1724703054765,-64.2652706,0.00010958,2]
[336119632,1724703054774,-517.11,0.00010958,2]
[336119634,1724703054783,-517.11,0.00010958,2]
[336119636,1724703054793,-517.11,0.00010958,2]
[336119638,1724703054802,-517.11,0.00010958,2]
[336119640,1724703054812,-517.11,0.00010958,2]
[336119642,1724703054821,-517.11,0.00010958,2]
[336119644,1724703054831,-517.11,0.00010958,2]
[336119646,1724703054841,-517.11,0.00010958,2]
[336119648,1724703054850,-500.0,0.00010958,2]
[336119650,1724703054859,-517.11,0.00010958,2]
[336119652,1724703054868,-500.0,0.00010958,2]
[336119654,1724703054877,-517.11,0.00010958,2]
[336119655,1724703054886,-500.0,0.00010958,2]
[336119657,1724703054895,-517.11,0.00010958,2]
[336119659,1724703054904,-500.0,0.00010958,2]
[336119661,1724703054914,-500.0,0.00010958,2]
[336119663,1724703054923,-517.18958465,0.00010958,2]
[336119665,1724703054932,-500.0,0.00010958,2]
[336119667,1724703054941,-500.0,0.00010958,2]
[336119669,1724703054950,-500.0,0.00010958,2]
[336119671,1724703054960,-500.0,0.00010958,2]
[336119673,1724703054969,-500.0,0.00010958,2]
[336119675,1724703054979,-500.0,0.00010958,2]
[336119677,1724703054988,-500.0,0.00010958,2]
[336119679,1724703054998,-500.0,0.00010958,2]
[336119681,1724703055008,-500.0,0.00010958,2]
[336119683,1724703055017,-500.0,0.00010958,2]
[336119685,1724703055026,-500.0,0.00010958,2]
[336119687,1724703055036,-500.0,0.00010958,2]
[336119688,1724703055046,-500.0,0.00010958,2]
[336119690,1724703055055,-500.0,0.00010958,2]
[336119692,1724703055065,-500.0,0.00010958,2]
[336119694,1724703055074,-500.0,0.00010958,2]
[336119696,1724703055084,-500.0,0.00010958,2]
[336119698,1724703055093,-500.0,0.00010958,2]
[336119700,1724703055103,-244.17866971,0.00010958,2]
[336119702,1724703055113,-500.0,0.00010958,2]
[336119704,1724703055123,-500.0,0.00010958,2]
[336119706,1724703055133,-500.0,0.00010958,2]
[336119708,1724703055143,-500.0,0.00010958,2]
[336119710,1724703055152,-500.0,0.00010958,2]
[336119712,1724703055162,-500.0,0.00010958,2]
[336119714,1724703055171,-500.0,0.00010958,2]
[336119716,1724703055181,-500.0,0.00010958,2]
[336119718,1724703055190,-222.51392252,0.00010958,2]
[336119720,1724703055200,-838.82,0.00010958,2]
[336119722,1724703055210,-500.0,0.00010958,2]
[336119724,1724703055219,-838.82,0.00010958,2]
[336119726,1724703055229,-500.0,0.00010958,2]
[336119728,1724703055238,-838.82,0.00010958,2]
[336119730,1724703055248,-500.0,0.00010958,2]
[336119732,1724703055257,-838.82,0.00010958,2]
[336119734,1724703055267,-500.0,0.00010958,2]
[336119735,1724703055276,-838.82,0.00010958,2]
[336119737,1724703055286,-500.0,0.00010958,2]
[336119739,1724703055294,-838.82,0.00010958,2]
[336119741,1724703055303,-500.0,0.00010958,2]
[336119743,1724703055313,-838.82,0.00010958,2]
[336119745,1724703055322,-389.15,0.00010958,2]
[336119747,1724703055331,-838.82,0.00010958,2]
[336119749,1724703055340,-838.82,0.00010958,2]
[336119751,1724703055349,-838.82,0.00010958,2]
[336119753,1724703055359,-558.56,0.00010958,2]
[336119755,1724703055368,-838.82,0.00010958,2]
[336119757,1724703055376,-558.56,0.00010958,2]
[336119759,1724703055385,-558.56,0.00010958,2]
[336119761,1724703055395,-838.82,0.00010958,2]
[336119763,1724703055404,-838.82,0.00010958,2]
[336119765,1724703055413,-558.56,0.00010958,2]
[336119767,1724703055423,-838.82,0.00010958,2]
[336119769,1724703055432,-558.56,0.00010958,2]
[336119771,1724703055444,-151.0,0.00010958,2]
[336119772,1724703055453,-838.82,0.00010958,2]
[336119774,1724703055461,-558.56,0.00010958,2]
[336119776,1724703055471,-838.82,0.00010958,2]
[336119778,1724703055480,-151.0,0.00010958,2]
[336119780,1724703055489,-558.56,0.00010958,2]
[336119782,1724703055498,-838.82,0.00010958,2]
[336119784,1724703055507,-558.56,0.00010958,2]
[336119786,1724703055516,-151.0,0.00010958,2]
[336119788,1724703055525,-838.82,0.00010958,2]
[336119790,1724703055534,-558.56,0.00010958,2]
[336119792,1724703055544,-838.82,0.00010958,2]
[336119793,1724703055553,-558.56,0.00010958,2]
[336119795,1724703055562,-838.82,0.00010958,2]
[336119797,1724703055571,-558.56,0.00010958,2]
[336119799,1724703055580,-838.82,0.00010958,2]
[336119801,1724703055590,-558.56,0.00010958,2]
[336119803,1724703055601,-500.0,0.00010958,2]
[336119806,1724703055613,-838.82,0.00010958,2]
[336119808,1724703055627,-558.56,0.00010958,2]
[336119810,1724703055639,-500.0,0.00010958,2]
[336119811,1724703055650,-838.82,0.00010958,2]
[336119812,1724703055660,-558.56,0.00010958,2]
[336119813,1724703055671,-500.0,0.00010958,2]
[336119814,1724703055681,-838.98167417,0.00010958,2]
[336119815,1724703055692,-558.56,0.00010958,2]
[336119816,1724703055704,-500.0,0.00010958,2]
[336119817,1724703055714,-500.0,0.00010958,2]
[336119818,1724703055725,-500.0,0.00010958,2]
[336119819,1724703055737,-500.0,0.00010958,2]
[336119820,1724703055747,-500.0,0.00010958,2]
[336119821,1724703055758,-151.0,0.00010958,2]
[336119822,1724703055769,-500.0,0.00010958,2]
[336119823,1724703055780,-500.0,0.00010958,2]
[336119824,1724703055791,-151.0,0.00010958,2]
[336119827,1724703055802,-500.0,0.00010958,2]
[336119829,1724703055813,-151.79782672,0.00010958,2]
[336119863,1724703056131,-1130.07324647,0.00010958,2]
[336119866,1724703056145,-405.81892681,0.00010958,2]
[336119868,1724703056156,-151.0,0.00010958,2]
[336119870,1724703056167,-500.0,0.00010958,2]
[336119872,1724703056177,-1687.69,0.00010958,2]
[336119874,1724703056188,-500.0,0.00010958,2]
[336119877,1724703056199,-187.657072,0.00010958,2]
[336119879,1724703056210,-1687.69,0.00010958,2]
[336119881,1724703056220,-500.0,0.00010958,2]
[336119883,1724703056231,-1687.69,0.00010958,2]
[336119885,1724703056241,-1687.69,0.00010958,2]
[336119887,1724703056251,-500.0,0.00010958,2]
[336119889,1724703056262,-523.86032342,0.00010958,2]
[336119892,1724703056277,-1163.82967658,0.00010958,2]
[336119894,1724703056287,-500.0,0.00010958,2]
[336119896,1724703056297,-1687.69,0.00010958,2]
[336119898,1724703056307,-500.0,0.00010958,2]
[336119900,1724703056317,-1687.69,0.00010958,2]
[336119902,1724703056327,-500.0,0.00010958,2]
[336119904,1724703056338,-1687.69,0.00010958,2]
[336119906,1724703056347,-500.0,0.00010958,2]
[336119909,1724703056358,-1687.69,0.00010958,2]
[336119911,1724703056369,-1204.25930112,0.00010958,2]
[336119913,1724703056382,-483.43069888,0.00010958,2]
[336119915,1724703056392,-295.45324508,0.00010958,2]
[336119917,1724703056402,-365.37365366,0.00010958,2]
[336119919,1724703056414,-332.78,0.00010958,2]
[336119922,1724703056427,-703.67499998,0.00010958,2]
[336119924,1724703056439,-285.86134636,0.00010958,2]
[336119926,1724703056450,-846.04053273,0.00010958,2]
[336119929,1724703056464,-500.0,0.00010958,2]
[336119931,1724703056476,-264.37005527,0.00010958,2]
[336120687,1724703157468,2249.6,9.978e-05,2]
[336120688,1724703185213,239.92,9.972e-05,2]
[336120689,1724703238205,3249.62782058,9.972e-05,2]
[336120690,1724703238228,4406.61672765,9.972e-05,2]
[336120691,1724703262913,1000.0,9.976e-05,2]
[336120692,1724703304676,919.98,9.974e-05,2]
[336120693,1724703316799,262.79087656,9.972e-05,2]
[336120694,1724703331110,279.69,8.219e-05,2]
[336120695,1724703332971,3130.92239579,9.974e-05,2]
[336120696,1724703332996,5464.5612011,9.974e-05,2]
[336120697,1724703426678,373.28,9.952e-05,2]
[336120698,1724703452735,1050.0,0.0001,2]
[336120700,1724703544782,2861.98,9.96e-05,2]
[336120701,1724703626739,250.0,9.952e-05,2]
[336120702,1724703665162,0.1787989,9.961e-05,2]
[336120703,1724703665186,239.7412011,9.961e-05,2]
[336120704,1724703757180,9760.2587989,9.961e-05,2]
[336120705,1724703757200,1445.32374623,9.961e-05,2]
[336120706,1724703826258,330.5830106,0.00010009,2]
[336120707,1724703827778,304.00083783,0.00010009,2]
[336120708,1724703833739,1950.0,9.93e-05,2]
[336120709,1724703860794,1269.9153111,9.961e-05,2]
[336120710,1724703864905,200.0,9.955e-05,2]
[336120711,1724703879017,199.29009786,0.00010009,2]
[336120712,1724703891467,159.83411202,0.00010009,2]
[336120715,1724703906842,293.54,8.219e-05,2]
[336120716,1724703914679,150.0,9.888e-05,2]
[336120718,1724703939195,3697.51288436,8.219e-05,2]
[336120719,1724703939215,3394.77024894,8.219e-05,2]
[336120720,1724703943998,6605.22975106,8.219e-05,2]
[336120721,1724703944019,9646.49839406,8.219e-05,2]
[336120722,1724703944908,186.64,9.928e-05,2]
[336120724,1724703950931,155.57632228,9.962e-05,2]
[336120726,1724703965801,11.28528366,8.219e-05,2]
[336120727,1724703965825,186.66101224,8.219e-05,2]
[336120729,1724703981425,150.0,0.00012111,30]
[336120730,1724703996133,242.0388971,9.962e-05,2]
[336120731,1724703996920,693.15255897,9.962e-05,2]
[336120732,1724704005321,1152.74082596,9.962e-05,2]
[336120733,1724704008831,374.52537807,0.00010009,2]
[336120734,1724704012423,532.35855902,9.962e-05,2]
[336120735,1724704018051,155.25933113,9.962e-05,2]
[336120736,1724704021215,500.0,8.275e-05,2]
[336120737,1724704021503,6163.26343751,9.962e-05,2]
[336120738,1724704021525,10000.0,9.962e-05,2]
[336120739,1724704021548,91.23520129,9.962e-05,2]
[336120740,1724704021692,500.0,8.275e-05,2]
[336120741,1724704022277,164.44192191,9.962e-05,2]
[336120747,1724704032837,3578.57182493,9.962e-05,2]
[336120748,1724704037566,500.0,0.00010012,2]
[336120750,1724704048496,379.40277875,0.00010009,2]
[336120753,1724704056601,150.0,0.0001,10]
[336120754,1724704062060,500.0,8.275e-05,2]
[336120756,1724704077234,2111.83717658,0.00010009,2]
[336120757,1724704078154,164.37647516,0.0001,2]
[336120758,1724704091373,155.0,0.00010009,2]
[336120759,1724704101207,500.0,0.00010009,2]
[336120760,1724704106761,160.0,0.00010009,2]
[336120761,1724704118637,172.87,9.933e-05,2]
[336120764,1724704127152,413.53555772,0.00010009,2]
[336120765,1724704141818,458.72906366,0.00010009,2]
[336120766,1724704141839,2611.92049736,0.00010009,2]
[336120767,1724704144024,3623.28846894,0.00010009,2]
[336120819,1724704169193,297.05851896,0.00010009,2]
[336120824,1724704189497,400.0,9.933e-05,2]
[336120827,1724704197209,500.0,0.00010009,2]
[336120830,1724704202211,150.0,0.00010009,2]
[336120831,1724704202429,150.0,0.00010009,2]
[336120832,1724704202885,150.0,0.00010009,2]
[336120833,1724704203098,150.0,0.00010009,2]
[336120834,1724704203313,150.0,0.00010009,2]
[336120835,1724704203533,150.0,0.00010009,2]
[336120836,1724704203956,150.0,0.00010009,2]
[336120837,1724704204131,150.0,0.00010009,2]
[336120838,1724704204385,150.0,0.00010009,2]
[336120839,1724704204607,150.0,0.00010009,2]
[336120840,1724704204955,150.0,0.00010009,2]
[336120841,1724704205174,202.39268906,0.00010009,2]
[336120853,1724704221161,413.53555772,0.00010009,2]
[336120874,1724704238056,-804.92,0.00010043,2]
[336120875,1724704238067,-293.54,0.00010473,2]
[336120876,1724704238076,-317.19028667,0.00010505,2]
[336120877,1724704238088,-1006.04402386,0.00010505,2]
[336120878,1724704238099,-1555.82742953,0.00010505,2]
[336120879,1724704238108,-3877.81959156,0.00010566,2]
[336120880,1724704238117,-1004.0,0.000107,2]
[336120881,1724704238126,-155.02690151,0.00010713,2]
[336120882,1724704238135,-212.73575126,0.00010713,2]
[336120883,1724704238146,-221.467,0.00010843,2]
[336120884,1724704238155,-677.393,0.00010843,2]
[336120885,1724704238164,-848.55030253,0.00010849,2]
[336120886,1724704238180,-1388.09553447,0.00010849,2]
[336120887,1724704238191,-987.45743925,0.00010849,2]
[336120888,1724704238211,-3043.86672375,0.00010849,2]
[336120889,1724704238220,-60101.4676,0.0001085,2]
[336120890,1724704238229,-163.98442342,0.00010851,2]
[336120891,1724704238238,-5410.63713417,0.00010852,2]
[336120892,1724704238247,-163.98442341,0.00010855,2]
[336120893,1724704238256,-157.10906008,0.00010858,2]
[336120894,1724704238265,-163.98442341,0.00010858,2]
[336120895,1724704238275,-2500.0,0.00010858,2]
[336120897,1724704238284,-179.95461695,0.00010888,2]
[336120898,1724704238294,-4510.94,0.00010911,2]
[336120899,1724704238304,-150.67,0.0001094,2]
[336120900,1724704238313,-223.75992115,0.00010947,2]
[336120901,1724704238322,-150.0,0.00010949,2]
[336120902,1724704238331,-61072.52619094,0.0001095,3]
[336121202,1724704241193,-3419.99457149,0.0001095,3]
[336121205,1724704241205,-3740.93380724,0.0001095,3]
[336121208,1724704241225,-595.48935317,0.0001095,3]
[336121210,1724704241236,-430.83949475,0.0001095,3]
[336121383,1724704243116,-1587.98952005,0.0001095,3]
[336121397,1724704243247,-1056.06830296,0.0001095,3]
[336121406,1724704243340,-2574.89056044,0.0001095,3]
[336122923,1724704288128,268.36,9.975e-05,2]
[336122924,1724704323254,33.44426796,7.229e-05,2]
[336122925,1724704323276,120.45573204,7.229e-05,2]
[336122926,1724704449934,840.0,9.938e-05,2]
[336122927,1724704453851,5612.85348047,8.762e-05,2]
[336122928,1724704457216,1178.30788009,9.968e-05,2]
[336122929,1724704504929,216.46,9.937e-05,2]
[336122930,1724704610166,2031.9229074,9.94e-05,2]
[336122931,1724704610188,2541.8570926,9.94e-05,2]
[336122932,1724704638517,186.25460476,9.968e-05,2]
[336122933,1724704653376,317.93,8.219e-05,2]
[336122934,1724704698095,200.0,9.932e-05,2]
[336122935,1724704719351,200.0,9.914e-05,2]
[336122936,1724704771229,1975.9,9.988e-05,2]
[336122937,1724704820028,153.9,7.17e-05,2]
[336122938,1724704925432,305.0,8.691e-05,2]
[336122939,1724704925504,434.60721071,8.691e-05,2]
[336122940,1724704925864,2711.66791417,8.691e-05,2]
[336122941,1724704927935,694.11048649,8.691e-05,2]
[336122942,1724704928379,278.77269127,8.691e-05,2]
[336122943,1724704928398,993.1348567,8.691e-05,2]
[336122944,1724704928817,5277.00867988,8.691e-05,2]